fUSD/lending_fUSD_20250207
["ID","MTS","AMOUNT","RATE_DAILY","PERIOD"]
[352128914,1738956651526,-3275.06,0.00016575,2]
[352128916,1738956651536,-1882.91,0.00016575,2]
[352128917,1738956651546,-1686.85,0.00016575,2]
[352128919,1738956651555,-972.36,0.00016575,2]
[352128921,1738956651570,-993.82,0.00016575,2]
[352128924,1738956651581,-2377.09,0.00016575,2]
[352128926,1738956651590,-1338.75,0.00016575,2]
[352128927,1738956651600,-500.0,0.00016575,2]
[352128930,1738956651611,-1209.72,0.00016575,2]
[352128932,1738956651620,-3708.92,0.00016575,2]
[352128934,1738956651629,-500.0,0.00016575,2]
[352128936,1738956651639,-2135.6,0.00016575,2]
[352128937,1738956651649,-500.0,0.00016575,2]
[352128939,1738956651658,-2799.93,0.00016575,2]
[352128942,1738956651667,-2642.08,0.00016575,2]
[352128943,1738956651677,-500.0,0.00016575,2]
[352128945,1738956651686,-928.35,0.00016575,2]
[352128947,1738956651695,-2130.68,0.00016575,2]
[352128949,1738956651705,-2968.87,0.00016575,2]
[352128951,1738956651714,-500.0,0.00016575,2]
[352128953,1738956651723,-500.0,0.00016575,2]
[352128955,1738956651733,-500.0,0.00016575,2]
[352128957,1738956651743,-500.0,0.00016575,2]
[352128959,1738956651752,-500.0,0.00016575,2]
[352128961,1738956651761,-4265.56,0.00016575,2]
[352128963,1738956651776,-1264.49,0.00016575,2]
[352128965,1738956651786,-500.0,0.00016575,2]
[352128968,1738956651796,-2756.51,0.00016575,2]
[352128969,1738956651805,-500.0,0.00016575,2]
[352128972,1738956651816,-1952.36,0.00016575,2]
[352128974,1738956651826,-547.5688147,0.00016575,2]
[352128975,1738956651835,-500.0,0.00016575,2]
[352128977,1738956651845,-2675.04,0.00016575,2]
[352128979,1738956651854,-338.08054403,0.00016575,2]
[352128981,1738956651864,-184.668002,0.00016575,2]
[352128983,1738956651873,-1643.06,0.00016575,2]
[352128985,1738956651883,-2535.68,0.00016575,2]
[352128987,1738956651892,-2559.02,0.00016575,2]
[352128989,1738956651902,-505.67571948,0.00016575,2]
[352128991,1738956651911,-500.0,0.00016575,2]
[352128993,1738956651920,-982.62,0.00016575,2]
[352128995,1738956651929,-1048.24,0.00016575,2]
[352128997,1738956651939,-507.9152721,0.00016575,2]
[352128999,1738956651948,-652.99,0.00016575,2]
[352129001,1738956651958,-3904.04,0.00016575,2]
[352129003,1738956651967,-500.0,0.00016575,2]
[352129005,1738956651977,-634.310663,0.00016575,2]
[352129007,1738956651986,-500.0,0.00016575,2]
[352129009,1738956651996,-1687.81,0.00016575,2]
[352129011,1738956652005,-1846.01,0.00016575,2]
[352129014,1738956652018,-500.0,0.00016575,2]
[352129016,1738956652027,-500.0,0.00016575,2]
[352129018,1738956652036,-8054.78,0.00016575,2]
[352129019,1738956652045,-2697.16,0.00016575,2]
[352129022,1738956652055,-1537.43,0.00016575,2]
[352129024,1738956652064,-4171.0,0.00016575,2]
[352129026,1738956652073,-502.97527938,0.00016575,2]
[352129027,1738956652083,-500.0,0.00016575,2]
[352129029,1738956652092,-4545.2,0.00016575,2]
[352129031,1738956652101,-871.03,0.00016575,2]
[352129032,1738956652110,-278.55791058,0.00016575,2]
[352129034,1738956652120,-1100.92,0.00016575,2]
[352129035,1738956652129,-4717.88,0.00016575,2]
[352129037,1738956652138,-1186.63,0.00016575,2]
[352129039,1738956652147,-778.34,0.00016575,2]
[352129040,1738956652155,-500.0,0.00016575,2]
[352129042,1738956652164,-6146.82,0.00016575,2]
[352129043,1738956652174,-1352.28,0.00016575,2]
[352129045,1738956652183,-2922.19,0.00016575,2]
[352129046,1738956652193,-500.0,0.00016575,2]
[352129048,1738956652202,-823.38,0.00016575,2]
[352129049,1738956652211,-2029.74,0.00016575,2]
[352129051,1738956652220,-500.0,0.00016575,2]
[352129053,1738956652229,-500.0,0.00016575,2]
[352129054,1738956652238,-500.0,0.00016575,2]
[352129056,1738956652247,-4297.56,0.00016575,2]
[352129058,1738956652256,-4260.15,0.00016575,2]
[352129059,1738956652267,-1150.5,0.00016575,2]
[352129061,1738956652277,-260.065579,0.00016575,2]
[352129063,1738956652286,-4984.09,0.00016575,2]
[352129064,1738956652295,-500.0,0.00016575,2]
[352129066,1738956652304,-630.57,0.00016575,2]
[352129067,1738956652313,-4214.42,0.00016575,2]
[352129069,1738956652322,-1455.84,0.00016575,2]
[352129070,1738956652331,-1559.73,0.00016575,2]
[352129072,1738956652340,-1241.92,0.00016575,2]
[352129074,1738956652349,-2692.24,0.00016575,2]
[352129076,1738956652358,-500.0,0.00016575,2]
[352129077,1738956652368,-500.0,0.00016575,2]
[352129079,1738956652377,-565.69651424,0.00016575,2]
[352129080,1738956652385,-1067.17,0.00016575,2]
[352129082,1738956652394,-500.0,0.00016575,2]
[352129084,1738956652403,-881.73,0.00016575,2]
[352129085,1738956652413,-3307.35,0.00016575,2]
[352129087,1738956652423,-328.09964457,0.00016575,2]
[352129089,1738956652432,-500.0,0.00016575,2]
[352129091,1738956652442,-2646.43,0.00016575,2]
[352129092,1738956652451,-500.0,0.00016575,2]
[352129094,1738956652462,-742.64,0.00016575,2]
[352129096,1738956652472,-500.0,0.00016575,2]
[352129097,1738956652481,-548.98,0.00016575,2]
[352129099,1738956652491,-3381.29,0.00016575,2]
[352129101,1738956652500,-500.0,0.00016575,2]
[352129103,1738956652510,-797.92,0.00016575,2]
[352129104,1738956652523,-3042.11,0.00016575,2]
[352129106,1738956652532,-553.95,0.00016575,2]
[352129108,1738956652542,-500.0,0.00016575,2]
[352129109,1738956652551,-527.06,0.00016575,2]
[352129111,1738956652560,-500.0,0.00016575,2]
[352129113,1738956652571,-500.0,0.00016575,2]
[352129115,1738956652580,-169.20023238,0.00016575,2]
[352129116,1738956652590,-1555.24,0.00016575,2]
[352129118,1738956652599,-3666.13,0.00016575,2]
[352129120,1738956652608,-298.50395364,0.00016575,2]
[352129121,1738956652618,-500.0,0.00016575,2]
[352129123,1738956652627,-1049.9,0.00016575,2]
[352129125,1738956652636,-502.19605916,0.00016575,2]
[352129127,1738956652646,-500.0,0.00016575,2]
[352129128,1738956652655,-1298.26,0.00016575,2]
[352129130,1738956652664,-500.0,0.00016575,2]
[352129132,1738956652673,-500.0,0.00016575,2]
[352129133,1738956652683,-1000.0,0.00016578,2]
[352129135,1738956652692,-150.0,0.00016587,2]
[352129137,1738956652701,-150.0,0.00016594,2]
[352129139,1738956652710,-150.0,0.00016596,2]
[352129140,1738956652719,-150.0,0.00016596,2]
[352129142,1738956652728,-150.0,0.00016598,2]
[352129144,1738956652737,-150.0,0.00016601,2]
[352129145,1738956652746,-150.0,0.00016604,2]
[352129147,1738956652755,-165.01765134,0.00016605,2]
[352129149,1738956652765,-254.97982236,0.00016612,2]
[352129150,1738956652775,-150.0,0.00016623,2]
[352129152,1738956652784,-150.0,0.00016632,2]
[352129154,1738956652792,-150.0,0.00016636,2]
[352129156,1738956652801,-1827.0,0.00016649,2]
[352129157,1738956652810,-2951.0,0.00016649,2]
[352129159,1738956652819,-437.297,0.00016649,2]
[352129161,1738956652829,-783.0,0.00016649,2]
[352129162,1738956652837,-1264.0,0.00016649,2]
[352129164,1738956652846,-539.0,0.00016649,2]
[352129166,1738956652855,-4024.0,0.00016649,2]
[352129167,1738956652864,-1108.0,0.00016649,2]
[352129169,1738956652873,-2022.0,0.00016649,2]
[352129171,1738956652883,-639.0,0.00016649,2]
[352129173,1738956652891,-3912.0,0.00016649,2]
[352129174,1738956652901,-1272.0,0.00016649,2]
[352129176,1738956652910,-150.0,0.00016649,2]
[352129178,1738956652919,-500.0,0.00016666,2]
[352129179,1738956652928,-150.0,0.00016668,2]
[352129181,1738956652937,-150.0,0.0001667,2]
[352129183,1738956652946,-150.0,0.00016673,2]
[352129185,1738956652957,-150.0,0.00016678,2]
[352129186,1738956652966,-150.0,0.00016679,2]
[352129188,1738956652975,-150.0,0.00016689,2]
[352129190,1738956652983,-150.0,0.0001669,2]
[352129191,1738956652992,-150.0,0.00016691,2]
[352129193,1738956653001,-690.22670659,0.00016691,2]
[352129195,1738956653010,-150.0,0.00016694,2]
[352129197,1738956653020,-150.0,0.00016694,2]
[352129198,1738956653029,-3000.163428,0.000167,2]
[352129200,1738956653038,-150.0,0.000167,2]
[352129202,1738956653047,-366.0,0.000167,2]
[352129203,1738956653056,-231.0,0.000167,2]
[352129205,1738956653065,-500.0,0.000167,2]
[352129207,1738956653074,-500.0,0.000167,2]
[352129209,1738956653083,-500.0,0.000167,2]
[352129210,1738956653092,-500.0,0.000167,2]
[352129212,1738956653103,-500.0,0.000167,2]
[352129214,1738956653111,-500.0,0.000167,2]
[352129215,1738956653120,-500.0,0.000167,2]
[352129217,1738956653130,-500.0,0.000167,2]
[352129219,1738956653139,-500.0,0.000167,2]
[352129221,1738956653149,-500.0,0.000167,2]
[352129222,1738956653158,-500.0,0.000167,2]
[352129224,1738956653168,-502.0,0.000167,2]
[352129226,1738956653177,-150.0,0.00016701,2]
[352129227,1738956653187,-150.0,0.00016707,2]
[352129229,1738956653196,-552.13,0.00016709,2]
[352129231,1738956653205,-150.0,0.00016709,2]
[352129233,1738956653214,-609.91641611,0.0001671,2]
[352129235,1738956653223,-500.0,0.0001671,2]
[352129237,1738956653232,-500.0,0.0001671,2]
[352129239,1738956653241,-621.95,0.0001671,2]
[352129241,1738956653250,-500.0,0.0001671,2]
[352129243,1738956653260,-500.0,0.0001671,2]
[352129245,1738956653276,-500.0,0.0001671,2]
[352129247,1738956653285,-500.27,0.0001671,2]
[352129249,1738956653295,-500.0,0.0001671,2]
[352129251,1738956653304,-500.0,0.0001671,2]
[352129253,1738956653314,-500.0,0.0001671,2]
[352129255,1738956653325,-500.0,0.0001671,2]
[352129257,1738956653334,-500.0,0.0001671,2]
[352129258,1738956653343,-500.0,0.0001671,2]
[352129259,1738956653353,-500.0,0.0001671,2]
[352129260,1738956653363,-500.0,0.0001671,2]
[352129261,1738956653373,-500.0,0.0001671,2]
[352129262,1738956653382,-500.0,0.0001671,2]
[352129263,1738956653392,-500.0,0.0001671,2]
[352129264,1738956653402,-500.0,0.0001671,2]
[352129265,1738956653411,-500.0,0.0001671,2]
[352129266,1738956653421,-500.0,0.0001671,2]
[352129267,1738956653430,-500.0,0.0001671,2]
[352129268,1738956653440,-500.0,0.0001671,2]
[352129269,1738956653449,-500.0,0.0001671,2]
[352129270,1738956653458,-500.0,0.0001671,2]
[352129271,1738956653467,-500.0,0.0001671,2]
[352129272,1738956653477,-500.0,0.0001671,2]
[352129273,1738956653486,-500.0,0.0001671,2]
[352129274,1738956653495,-500.0,0.0001671,2]
[352129275,1738956653505,-500.0,0.0001671,2]
[352129276,1738956653516,-500.0,0.0001671,2]
[352129277,1738956653526,-500.0,0.0001671,2]
[352129278,1738956653535,-500.0,0.0001671,2]
[352129280,1738956653544,-379.08,0.0001671,2]
[352129281,1738956653554,-500.0,0.0001671,2]
[352129282,1738956653563,-516.18,0.0001671,2]
[352129284,1738956653576,-500.0,0.0001671,2]
[352129286,1738956653585,-556.88,0.0001671,2]
[352129288,1738956653594,-500.0,0.0001671,2]
[352129290,1738956653605,-500.0,0.0001671,2]
[352129292,1738956653614,-500.0,0.0001671,2]
[352129294,1738956653623,-500.0,0.0001671,2]
[352129296,1738956653632,-500.0,0.0001671,2]
[352129298,1738956653641,-500.0,0.0001671,2]
[352129299,1738956653652,-500.0,0.0001671,2]
[352129301,1738956653662,-500.0,0.0001671,2]
[352129303,1738956653671,-500.0,0.0001671,2]
[352129305,1738956653680,-500.0,0.0001671,2]
[352129307,1738956653689,-500.0,0.0001671,2]
[352129309,1738956653698,-500.0,0.0001671,2]
[352129311,1738956653707,-649.56,0.0001671,2]
[352129313,1738956653716,-500.0,0.0001671,2]
[352129316,1738956653726,-500.0,0.0001671,2]
[352129318,1738956653735,-500.0,0.0001671,2]
[352129319,1738956653744,-295.88,0.0001671,2]
[352129321,1738956653753,-500.0,0.0001671,2]
[352129323,1738956653763,-500.0,0.0001671,2]
[352129325,1738956653772,-500.0,0.0001671,2]
[352129327,1738956653780,-500.0,0.0001671,2]
[352129328,1738956653789,-500.0,0.0001671,2]
[352129329,1738956653798,-500.0,0.0001671,2]
[352129330,1738956653807,-500.0,0.0001671,2]
[352129331,1738956653816,-500.0,0.0001671,2]
[352129332,1738956653826,-500.0,0.0001671,2]
[352129333,1738956653835,-500.0,0.0001671,2]
[352129334,1738956653844,-639.81,0.0001671,2]
[352129335,1738956653853,-500.0,0.0001671,2]
[352129336,1738956653862,-500.0,0.0001671,2]
[352129342,1738956654013,-500.0,0.0001671,2]
[352129345,1738956654041,-500.0,0.0001671,2]
[352129347,1738956654050,-500.0,0.0001671,2]
[352129349,1738956654060,-250.98004837,0.0001671,2]
[352129350,1738956654069,-500.0,0.0001671,2]
[352129351,1738956654079,-500.0,0.0001671,2]
[352129352,1738956654088,-500.0,0.0001671,2]
[352129353,1738956654098,-500.0,0.0001671,2]
[352129354,1738956654107,-500.0,0.0001671,2]
[352129355,1738956654116,-500.0,0.0001671,2]
[352129356,1738956654126,-500.0,0.0001671,2]
[352129357,1738956654135,-500.0,0.0001671,2]
[352129358,1738956654144,-500.0,0.0001671,2]
[352129359,1738956654153,-500.0,0.0001671,2]
[352129360,1738956654162,-500.0,0.0001671,2]
[352129361,1738956654171,-500.0,0.0001671,2]
[352129362,1738956654180,-500.0,0.0001671,2]
[352129363,1738956654190,-500.0,0.0001671,2]
[352129364,1738956654199,-500.0,0.0001671,2]
[352129365,1738956654209,-500.0,0.0001671,2]
[352129366,1738956654218,-500.0,0.0001671,2]
[352129367,1738956654228,-577.96,0.0001671,2]
[352129368,1738956654237,-500.0,0.0001671,2]
[352129369,1738956654247,-500.0,0.0001671,2]
[352129370,1738956654256,-500.0,0.0001671,2]
[352129371,1738956654267,-500.0,0.0001671,2]
[352129372,1738956654276,-500.0,0.0001671,2]
[352129373,1738956654286,-500.0,0.0001671,2]
[352129374,1738956654295,-500.0,0.0001671,2]
[352129375,1738956654305,-500.0,0.0001671,2]
[352129376,1738956654315,-500.0,0.0001671,2]
[352129377,1738956654325,-502.9229593,0.0001671,2]
[352129378,1738956654335,-500.0,0.0001671,2]
[352129379,1738956654344,-500.0,0.0001671,2]
[352129380,1738956654354,-500.0,0.0001671,2]
[352129381,1738956654364,-500.0,0.0001671,2]
[352129382,1738956654373,-500.0,0.0001671,2]
[352129383,1738956654382,-500.0,0.0001671,2]
[352129384,1738956654391,-500.0,0.0001671,2]
[352129385,1738956654400,-500.0,0.0001671,2]
[352129386,1738956654409,-213.54337545,0.0001671,2]
[352129387,1738956654418,-500.0,0.0001671,2]
[352129388,1738956654428,-500.0,0.0001671,2]
[352129389,1738956654437,-500.0,0.0001671,2]
[352129390,1738956654446,-159.33509239,0.0001671,2]
[352129391,1738956654456,-500.0,0.0001671,2]
[352129392,1738956654465,-500.0,0.0001671,2]
[352129393,1738956654474,-500.0,0.0001671,2]
[352129394,1738956654484,-500.0,0.0001671,2]
[352129395,1738956654493,-540.67,0.0001671,2]
[352129396,1738956654502,-500.0,0.0001671,2]
[352129397,1738956654511,-557.1,0.0001671,2]
[352129398,1738956654521,-500.0,0.0001671,2]
[352129399,1738956654531,-500.0,0.0001671,2]
[352129400,1738956654540,-500.0,0.0001671,2]
[352129401,1738956654550,-500.0,0.0001671,2]
[352129402,1738956654559,-500.0,0.0001671,2]
[352129403,1738956654571,-500.0,0.0001671,2]
[352129404,1738956654580,-500.0,0.0001671,2]
[352129405,1738956654589,-500.0,0.0001671,2]
[352129406,1738956654599,-167.48612521,0.0001671,2]
[352129407,1738956654609,-500.0,0.0001671,2]
[352129408,1738956654618,-500.0,0.0001671,2]
[352129409,1738956654627,-500.0,0.0001671,2]
[352129410,1738956654637,-500.0,0.0001671,2]
[352129411,1738956654648,-500.0,0.0001671,2]
[352129412,1738956654657,-500.0,0.0001671,2]
[352129413,1738956654667,-500.0,0.0001671,2]
[352129414,1738956654676,-500.0,0.0001671,2]
[352129415,1738956654685,-500.0,0.0001671,2]
[352129416,1738956654695,-500.0,0.0001671,2]
[352129417,1738956654704,-500.0,0.0001671,2]
[352129418,1738956654713,-500.0,0.0001671,2]
[352129419,1738956654723,-632.74,0.0001671,2]
[352129420,1738956654732,-500.0,0.0001671,2]
[352129421,1738956654742,-500.0,0.0001671,2]
[352129422,1738956654751,-500.0,0.0001671,2]
[352129423,1738956654760,-500.0,0.0001671,2]
[352129424,1738956654770,-500.0,0.0001671,2]
[352129425,1738956654779,-500.0,0.0001671,2]
[352129426,1738956654788,-500.0,0.0001671,2]
[352129427,1738956654797,-500.0,0.0001671,2]
[352129428,1738956654806,-530.71,0.0001671,2]
[352129429,1738956654815,-500.0,0.0001671,2]
[352129430,1738956654824,-500.0,0.0001671,2]
[352129431,1738956654833,-500.0,0.0001671,2]
[352129432,1738956654842,-500.0,0.0001671,2]
[352129433,1738956654851,-500.0,0.0001671,2]
[352129434,1738956654861,-500.0,0.0001671,2]
[352129435,1738956654870,-500.0,0.0001671,2]
[352129436,1738956654879,-500.0,0.0001671,2]
[352129437,1738956654887,-500.0,0.0001671,2]
[352129438,1738956654896,-500.0,0.0001671,2]
[352129439,1738956654906,-500.0,0.0001671,2]
[352129440,1738956654915,-500.0,0.0001671,2]
[352129441,1738956654924,-500.0,0.0001671,2]
[352129442,1738956654933,-500.0,0.0001671,2]
[352129443,1738956654942,-500.0,0.0001671,2]
[352129444,1738956654951,-500.0,0.0001671,2]
[352129445,1738956654961,-500.0,0.0001671,2]
[352129446,1738956654970,-500.0,0.0001671,2]
[352129447,1738956654979,-500.0,0.0001671,2]
[352129448,1738956654988,-500.0,0.0001671,2]
[352129449,1738956654997,-500.0,0.0001671,2]
[352129451,1738956655006,-500.0,0.0001671,2]
[352129453,1738956655017,-500.0,0.0001671,2]
[352129454,1738956655027,-500.0,0.0001671,2]
[352129455,1738956655037,-500.0,0.0001671,2]
[352129456,1738956655046,-500.0,0.0001671,2]
[352129457,1738956655056,-500.0,0.0001671,2]
[352129458,1738956655066,-500.0,0.0001671,2]
[352129459,1738956655075,-500.0,0.0001671,2]
[352129460,1738956655085,-500.0,0.0001671,2]
[352129461,1738956655095,-500.0,0.0001671,2]
[352129462,1738956655104,-500.0,0.0001671,2]
[352129463,1738956655114,-500.0,0.0001671,2]
[352129464,1738956655123,-500.0,0.0001671,2]
[352129465,1738956655132,-500.0,0.0001671,2]
[352129466,1738956655142,-500.0,0.0001671,2]
[352129467,1738956655151,-500.0,0.0001671,2]
[352129468,1738956655160,-500.0,0.0001671,2]
[352129469,1738956655170,-500.0,0.0001671,2]
[352129470,1738956655179,-500.0,0.0001671,2]
[352129471,1738956655188,-500.0,0.0001671,2]
[352129472,1738956655197,-500.0,0.0001671,2]
[352129473,1738956655206,-500.0,0.0001671,2]
[352129474,1738956655216,-500.0,0.0001671,2]
[352129475,1738956655225,-500.0,0.0001671,2]
[352129476,1738956655234,-500.0,0.0001671,2]
[352129477,1738956655243,-500.0,0.0001671,2]
[352129478,1738956655253,-500.0,0.0001671,2]
[352129479,1738956655262,-500.0,0.0001671,2]
[352129480,1738956655272,-500.0,0.0001671,2]
[352129481,1738956655282,-500.0,0.0001671,2]
[352129483,1738956655291,-500.0,0.0001671,2]
[352129485,1738956655300,-500.0,0.0001671,2]
[352129487,1738956655309,-500.0,0.0001671,2]
[352129489,1738956655318,-500.0,0.0001671,2]
[352129491,1738956655329,-500.0,0.0001671,2]
[352129493,1738956655338,-500.0,0.0001671,2]
[352129495,1738956655349,-500.0,0.0001671,2]
[352129497,1738956655357,-500.0,0.0001671,2]
[352129499,1738956655367,-500.0,0.0001671,2]
[352129501,1738956655376,-500.0,0.0001671,2]
[352129503,1738956655385,-500.0,0.0001671,2]
[352129505,1738956655395,-500.0,0.0001671,2]
[352129507,1738956655404,-500.0,0.0001671,2]
[352129509,1738956655413,-500.0,0.0001671,2]
[352129511,1738956655423,-500.0,0.0001671,2]
[352129513,1738956655432,-500.0,0.0001671,2]
[352129515,1738956655442,-500.0,0.0001671,2]
[352129517,1738956655451,-500.0,0.0001671,2]
[352129519,1738956655461,-500.0,0.0001671,2]
[352129521,1738956655470,-500.0,0.0001671,2]
[352129523,1738956655481,-500.0,0.0001671,2]
[352129525,1738956655490,-500.0,0.0001671,2]
[352129526,1738956655499,-500.0,0.0001671,2]
[352129527,1738956655508,-500.0,0.0001671,2]
[352129528,1738956655519,-500.0,0.0001671,2]
[352129529,1738956655528,-500.0,0.0001671,2]
[352129530,1738956655538,-500.0,0.0001671,2]
[352129531,1738956655547,-500.0,0.0001671,2]
[352129532,1738956655557,-500.0,0.0001671,2]
[352129533,1738956655567,-500.0,0.0001671,2]
[352129534,1738956655578,-500.0,0.0001671,2]
[352129535,1738956655587,-500.0,0.0001671,2]
[352129536,1738956655599,-500.0,0.0001671,2]
[352129537,1738956655609,-500.0,0.0001671,2]
[352129538,1738956655619,-500.0,0.0001671,2]
[352129539,1738956655630,-500.0,0.0001671,2]
[352129540,1738956655640,-500.0,0.0001671,2]
[352129541,1738956655651,-500.0,0.0001671,2]
[352129542,1738956655661,-500.0,0.0001671,2]
[352129543,1738956655671,-500.0,0.0001671,2]
[352129544,1738956655681,-500.0,0.0001671,2]
[352129545,1738956655690,-500.0,0.0001671,2]
[352129546,1738956655699,-500.0,0.0001671,2]
[352129547,1738956655708,-500.0,0.0001671,2]
[352129548,1738956655718,-500.0,0.0001671,2]
[352129549,1738956655727,-500.0,0.0001671,2]
[352129550,1738956655736,-500.0,0.0001671,2]
[352129551,1738956655746,-500.0,0.0001671,2]
[352129552,1738956655755,-500.0,0.0001671,2]
[352129553,1738956655766,-500.0,0.0001671,2]
[352129554,1738956655776,-500.0,0.0001671,2]
[352129555,1738956655785,-500.0,0.0001671,2]
[352129556,1738956655795,-500.0,0.0001671,2]
[352129557,1738956655804,-500.0,0.0001671,2]
[352129558,1738956655813,-500.0,0.0001671,2]
[352129559,1738956655822,-500.0,0.0001671,2]
[352129560,1738956655831,-500.0,0.0001671,2]
[352129561,1738956655841,-500.0,0.0001671,2]
[352129562,1738956655850,-500.0,0.0001671,2]
[352129563,1738956655860,-500.0,0.0001671,2]
[352129564,1738956655869,-500.0,0.0001671,2]
[352129566,1738956655878,-500.0,0.0001671,2]
[352129568,1738956655888,-500.0,0.0001671,2]
[352129569,1738956655897,-500.0,0.0001671,2]
[352129570,1738956655907,-500.0,0.0001671,2]
[352129571,1738956655916,-500.0,0.0001671,2]
[352129572,1738956655926,-500.0,0.0001671,2]
[352129573,1738956655936,-500.0,0.0001671,2]
[352129574,1738956655946,-500.0,0.0001671,2]
[352129575,1738956655956,-2942.64,0.0001671,2]
[352129576,1738956655966,-500.0,0.0001671,2]
[352129577,1738956655976,-500.0,0.0001671,2]
[352129578,1738956655985,-500.0,0.0001671,2]
[352129579,1738956655995,-500.0,0.0001671,2]
[352129580,1738956656004,-500.0,0.0001671,2]
[352129581,1738956656014,-500.0,0.0001671,2]
[352129582,1738956656023,-500.0,0.0001671,2]
[352129583,1738956656033,-500.0,0.0001671,2]
[352129584,1738956656042,-500.0,0.0001671,2]
[352129585,1738956656052,-500.0,0.0001671,2]
[352129586,1738956656061,-500.0,0.0001671,2]
[352129587,1738956656071,-500.0,0.0001671,2]
[352129588,1738956656080,-500.0,0.0001671,2]
[352129589,1738956656089,-500.0,0.0001671,2]
[352129590,1738956656098,-500.0,0.0001671,2]
[352129591,1738956656107,-500.0,0.0001671,2]
[352129592,1738956656116,-500.0,0.0001671,2]
[352129593,1738956656125,-500.0,0.0001671,2]
[352129594,1738956656135,-500.0,0.0001671,2]
[352129595,1738956656144,-500.0,0.0001671,2]
[352129596,1738956656154,-500.0,0.0001671,2]
[352129597,1738956656163,-500.0,0.0001671,2]
[352129598,1738956656173,-500.0,0.0001671,2]
[352129599,1738956656182,-500.0,0.0001671,2]
[352129600,1738956656192,-500.0,0.0001671,2]
[352129601,1738956656201,-500.0,0.0001671,2]
[352129602,1738956656210,-500.0,0.0001671,2]
[352129603,1738956656220,-500.0,0.0001671,2]
[352129604,1738956656230,-500.0,0.0001671,2]
[352129605,1738956656239,-500.0,0.0001671,2]
[352129606,1738956656248,-500.0,0.0001671,2]
[352129607,1738956656258,-500.0,0.0001671,2]
[352129608,1738956656269,-500.0,0.0001671,2]
[352129609,1738956656279,-500.0,0.0001671,2]
[352129610,1738956656288,-500.0,0.0001671,2]
[352129611,1738956656298,-510.83081712,0.0001671,2]
[352129612,1738956656307,-500.0,0.0001671,2]
[352129613,1738956656317,-500.0,0.0001671,2]
[352129614,1738956656327,-500.0,0.0001671,2]
[352129615,1738956656336,-500.0,0.0001671,2]
[352129616,1738956656345,-500.0,0.0001671,2]
[352129617,1738956656355,-500.0,0.0001671,2]
[352129618,1738956656364,-500.0,0.0001671,2]
[352129619,1738956656373,-500.0,0.0001671,2]
[352129620,1738956656383,-500.0,0.0001671,2]
[352129621,1738956656392,-500.0,0.0001671,2]
[352129622,1738956656402,-1743.62,0.0001671,2]
[352129623,1738956656411,-500.0,0.0001671,2]